[Event "FIDE Open World Rapid 2024"]
[Site "New York"]
[Date "2024.12.27"]
[Round "9.14"]
[White "Caruana, Fabiano"]
[Black "Pranav, V."]
[Result "1-0"]
[ECO "A20"]
[WhiteElo "2805"]
[BlackElo "2621"]
[Annotator "RC"]
[PlyCount "123"]
[EventDate "2024.12.14"]
[EventType "swiss"]
[EventCountry "USA"]
[SourceTitle "playchess.com"]
[Source "ChessBase"]
[SourceQuality "1"]
[TimeControl "900+10"]

1. c4 {[%emt 0:00:02]} e5 {[%emt 0:00:03]} 2. d3 {[%emt 0:00:02]} Nf6 {[%emt 0:00:07]} 3. Nf3 {[%emt 0:00:02]} Nc6 {[%emt 0:00:05]} 4. a3 {[%emt 0:00:01]} a5 {[%emt 0:00:24]} 5. e3 {[%emt 0:00:50]} Bc5 {[%emt 0:00:38]} 6. Be2 {[%emt 0:00:12]} d6 {[%emt 0:00:02]} 7. O-O {[%emt 0:00:05]} O-O {[%emt 0:00:03]} 8. Nc3 {[%emt 0:00:02]} h6 {[%emt 0:00:06]} 9. b3 {[%emt 0:00:20]} Re8 {[%emt 0:00:42]} 10. Bb2 {[%emt 0:00:02]} Ba7 {[%emt 0:00:01]} 11. b4 {[%emt 0:00:55]} Bf5 {[%emt 0:00:51]} 12. Qb3 {[%emt 0:00:15]} Be6 {[%emt 0:00:59]} 13. Nb5 {[%emt 0:01:21]} Bb6 {[%emt 0:00:26]} 14. Qc3 {[%emt 0:01:45]} Qe7 {[%emt 0:00:15]} 15. Rfc1 {[%emt 0:00:09]} Bg4 {[%emt 0:01:25]} 16. h3 {[%emt 0:00:23]} Bh5 {[%emt 0:00:01]} 17. Qe1 {[%emt 0:02:12]} axb4 {[%emt 0:01:44]} 18. axb4 {[%emt 0:00:01]} Rxa1 {[%emt 0:00:02]} 19. Rxa1 {[%emt 0:01:02]} Qd7 {[%emt 0:00:09]} 20. Rc1 {[%emt 0:01:06]} e4 {[%emt 0:02:50]} 21. Nh4 {[%emt 0:00:04]} Ne5 {[%emt 0:01:43]} 22. dxe4 {[%emt 0:00:26]} Bxe2 {[%emt 0:00:25]} 23. Qxe2 {[%emt 0:00:01]} Nxe4 {[%emt 0:00:01]} 24. Nc3 {[%emt 0:02:51]} Nxc3 {[%emt 0:02:18]} 25. Bxc3 {[%emt 0:00:01]} Qe6 {[%emt 0:00:03]} 26. Bb2 {[%emt 0:01:56]} c6 {[%emt 0:00:02]} 27. Nf3 {[%emt 0:00:19]} Nd7 {[%emt 0:01:07]} 28. Rd1 {[%emt 0:00:20]} Nf6 {[%emt 0:00:07]} 29. Bxf6 {[%emt 0:01:17]} Qxf6 {[%emt 0:00:01]} 30. Qd3 {[%emt 0:00:01]} Re6 {[%emt 0:00:04]} 31. Qa3 {[%emt 0:00:10]} Qe7 {[%emt 0:00:09]} 32. b5 {[%emt 0:00:32]} cxb5 {[%emt 0:01:46]} 33. cxb5 {[%emt 0:00:01]} Bc5 {[%emt 0:00:01]} 34. Qd3 {[%emt 0:00:03]} Qf6 {[%emt 0:00:05]} 35. Qd5 {[%emt 0:00:39]} b6 {[%emt 0:00:06]} 36. Rd2 {[%emt 0:01:07]} Qa1+ {[%emt 0:00:36]} 37. Kh2 {[%emt 0:00:01]} Qb1 {[%emt 0:00:02]} 38. Ra2 {[%emt 0:00:24]} Qe4 {[%emt 0:00:22]} 39. Ra8+ {[%emt 0:00:17]} Kh7 {[%emt 0:00:01]} 40. Qc6 {[%emt 0:00:02]} d5 {[%emt 0:00:27]} 41. Qd7 {[%emt 0:00:01]} Bd6+ {[%emt 0:00:36]} 42. Kh1 {[%emt 0:00:00]} Qb1+ {[%emt 0:00:20]} 43. Ng1 {[%emt 0:00:02]} Rf6 {[%emt 0:00:02]} 44. Qd8 {[%emt 0:00:31]} Kg6 {[%emt 0:00:37]} 45. Qd7 {[%emt 0:00:21]} Kh7 {[%emt 0:00:10]} 46. Qd8 {[%emt 0:00:01]} Kg6 {[%emt 0:00:09]} 47. Qd7 {[%emt 0:00:17]} Qe4 {[%emt 0:00:27]} 48. Re8 {[%emt 0:00:09]} Qc2 {[%emt 0:00:15]} 49. Rh8 {[%emt 0:00:13]} Qc4 {[%emt 0:00:10]} 50. f4 {[%emt 0:00:04]} h5 {[%emt 0:00:13]} 51. Nf3 {[%emt 0:00:02]} Bxf4 {[%emt 0:00:09]} 52. exf4 {[%emt 0:00:03]} Qc1+ {[%emt 0:00:01]} 53. Ng1 {[%emt 0:00:06]} Qxf4 {[%emt 0:00:09]} 54. Qxd5 {[%emt 0:00:03]} Rf5 {[%emt 0:00:01]} 55. Qd3 {[%emt 0:00:14]} Kf6 {[%emt 0:00:27]} 56. Rc8 {[%emt 0:00:07]} g6 {[%emt 0:00:12]} 57. Rc6+ {[%emt 0:00:03]} Kg7 {[%emt 0:00:01]} 58. Rxb6 {[%emt 0:00:10]} Re5 {[%emt 0:00:18]} 59. Qc3 {[%emt 0:00:06]} Kh7 {[%emt 0:00:08]} 60. Rb8 {[%emt 0:00:04]} f6 {[%emt 0:00:13]} 61. Qc7+ {[%emt 0:00:08]} Kh6 {[%emt 0:00:03]} 62. Rh8+ {[%emt 0:00:02]} 1-0

[Event "FIDE Open World Rapid 2024"]
[Site "New York"]
[Date "2024.12.28"]
[Round "9.14"]
[White "Hakobyan, Aram"]
[Black "Tang, Andrew"]
[Result "1-0"]
[ECO "D85"]
[WhiteElo "2625"]
[BlackElo "2527"]
[Annotator "ChessBase"]
[PlyCount "79"]
[EventDate "2024.12.14"]
[EventType "swiss"]
[EventCountry "USA"]
[SourceTitle "playchess.com"]
[Source "ChessBase"]
[SourceQuality "1"]
[TimeControl "900+10"]

1. d4 {[%emt 0:00:01]} Nf6 {[%emt 0:00:03]} 2. c4 {[%emt 0:00:01]} g6 {[%emt 0:00:02]} 3. Nc3 {[%emt 0:00:03]} d5 {[%emt 0:00:01]} 4. cxd5 {[%emt 0:00:06]} Nxd5 {[%emt 0:00:02]} 5. e4 {[%emt 0:00:03]} Nxc3 {[%emt 0:00:03]} 6. bxc3 {[%emt 0:00:07]} Bg7 {[%emt 0:00:02]} 7. Nf3 {[%emt 0:00:15]} c5 {[%emt 0:00:01]} 8. h3 {[%emt 0:00:01]} O-O {[%emt 0:00:28]} 9. Be2 {[%emt 0:00:08]} Nc6 {[%emt 0:00:03]} 10. Be3 {[%emt 0:00:05]} cxd4 {[%emt 0:00:08]} 11. cxd4 {[%emt 0:00:01]} Qa5+ {[%emt 0:00:05]} 12. Bd2 {[%emt 0:00:02]} Qa3 {[%emt 0:00:09]} 13. d5 {[%emt 0:00:17]} Ne5 {[%emt 0:00:03]} 14. O-O {[%emt 0:00:11]} Nxf3+ {[%emt 0:00:33]} 15. Bxf3 {[%emt 0:00:03]} Bxa1 {[%emt 0:00:04]} 16. Qxa1 {[%emt 0:00:04]} f6 {[%emt 0:00:04]} 17. Rb1 {[%emt 0:01:27]} Rf7 {[%emt 0:00:06]} 18. Bb4 {[%emt 0:00:33]} Qd3 {[%emt 0:01:10]} 19. e5 {[%emt 0:02:53]} fxe5 {[%emt 0:00:10]} 20. Rb3 {[%emt 0:00:02]} Qf5 {[%emt 0:09:43]} 21. Re3 {[%emt 0:01:13]} Bd7 {[%emt 0:01:28]} 22. Rxe5 {[%emt 0:01:48]} Qf6 {[%emt 0:00:36]} 23. Qe1 {[%emt 0:00:52]} Rc8 {[%emt 0:00:02]} 24. Bxe7 {[%emt 0:05:12]} Qf4 {[%emt 0:00:48]} 25. Bg5 {[%emt 0:00:03]} Qd4 {[%emt 0:00:02]} 26. Bh6 {[%emt 0:01:56]} Qh4 {[%emt 0:01:10]} 27. Bg5 {[%emt 0:00:14]} Qd4 {[%emt 0:00:02]} 28. h4 {[%emt 0:00:16]} h6 {[%emt 0:00:52]} 29. Re4 {[%emt 0:01:08]} Qxd5 {[%emt 0:00:18]} 30. Bxh6 {[%emt 0:00:03]} Qxa2 {[%emt 0:00:02]} 31. Re5 {[%emt 0:00:25]} Bc6 {[%emt 0:01:35]} 32. Bg4 {[%emt 0:00:12]} Rd8 {[%emt 0:00:14]} 33. Be6 {[%emt 0:00:08]} Qa3 {[%emt 0:00:05]} 34. Qb1 {[%emt 0:00:37]} Qd3 {[%emt 0:00:05]} 35. Qb4 {[%emt 0:00:12]} Rdd7 {[%emt 0:00:17]} 36. Qf8+ {[%emt 0:00:12]} Kh7 {[%emt 0:00:02]} 37. Bxf7 {[%emt 0:00:07]} Qd1+ {[%emt 0:00:30]} 38. Kh2 {[%emt 0:00:03]} Rxf7 {[%emt 0:00:09]} 39. Qxf7+ {[%emt 0:00:02]} Kxh6 {[%emt 0:00:02]} 40. Qf8+ {[%emt 0:00:03]} 1-0

[Event "FIDE Open World Rapid 2024"]
[Site "New York"]
[Date "2024.12.27"]
[Round "9.15"]
[White "Wei, Yi"]
[Black "Paravyan, David"]
[Result "1-0"]
[ECO "D00"]
[WhiteElo "2753"]
[BlackElo "2620"]
[Annotator "TA"]
[PlyCount "111"]
[EventDate "2024.12.14"]
[EventType "swiss"]
[EventCountry "USA"]
[SourceTitle "playchess.com"]
[Source "ChessBase"]
[SourceQuality "1"]
[TimeControl "900+10"]

{[%evp 50,111,-56,-46,-25,-163,-27,-51,-47,-46,-59,-58,0,-65,-28,-25,-22,-104,-18,0,0,-44,34,-64,0,-41,-9,-32,-31,-44,0,0,0,0,0,0,0,-8,-25,-58,0,0,0,0,0,0,0,0,0,0,0,0,10,8,208,210,213,130,118,0,1780,1075,29995,29996]} 1. d4 {[%emt 0:00:03]} d5 {[%emt 0:00:02]} 2. Bf4 {[%emt 0:00:08]} Bf5 {[%emt 0:00:02]} 3. e3 {[%emt 0:00:14]} e6 {[%emt 0:00:02]} 4. Bd3 {[%emt 0:01:36]} Bxd3 {[%emt 0:00:03]} 5. cxd3 {[%emt 0:00:02]} c5 {[%emt 0:00:46]} 6. Nf3 {[%emt 0:05:52]} Nc6 {[%emt 0:00:05]} 7. dxc5 {[%emt 0:00:07]} Bxc5 {[%emt 0:00:04]} 8. O-O {[%emt 0:00:06]} Bd6 {[%emt 0:02:48]} 9. Bg5 {[%emt 0:00:45]} Nge7 {[%emt 0:01:03]} 10. Nc3 {[%emt 0:00:06]} h6 {[%emt 0:01:18]} 11. Bh4 {[%emt 0:00:03]} O-O {[%emt 0:00:25]} 12. e4 {[%emt 0:00:37]} Qb6 {[%emt 0:02:26]} 13. e5 {[%emt 0:01:19]} Bc7 {[%emt 0:00:46]} 14. Na4 {[%emt 0:00:12]} Qb5 {[%emt 0:00:35]} 15. Bxe7 {[%emt 0:00:34]} Nxe7 {[%emt 0:00:02]} 16. Rc1 {[%emt 0:00:02]} Rac8 {[%emt 0:00:15]} 17. a3 {[%emt 0:00:25]} Bb8 {[%emt 0:00:27]} 18. Rxc8 {[%emt 0:00:51]} Rxc8 {[%emt 0:00:02]} 19. Re1 {[%emt 0:00:11]} a6 {[%emt 0:01:35]} 20. Nd4 {[%emt 0:00:16]} Qe8 {[%emt 0:00:25]} 21. Nc3 {[%emt 0:00:17]} Nc6 {[%emt 0:00:36]} 22. Nf3 {[%emt 0:00:22]} Ba7 {[%emt 0:00:26]} 23. d4 {[%emt 0:00:19]} Na5 {[%emt 0:00:06]} 24. h4 {[%emt 0:00:51]} Nc4 {[%emt 0:00:09]} 25. Qb1 {[%emt 0:00:53]} Qd8 {[%emt 0:00:41]} 26. Rc1 {[%emt 0:00:13]} Qa5 {[%emt 0:00:53]} 27. g3 {[%emt 0:00:59]} (27. Qa2 $11 {and White has nothing to worry.}) 27... Rc6 {[%emt 0:00:44]} (27... Nxa3 $1 $19 28. bxa3 Qxa3 (28... Rxc3 29. Rxc3 Qxc3 30. Qxb7 $15)) 28. Kg2 {[%emt 0:00:13]} Rb6 {[%emt 0:00:43]} 29. Nd1 {[%emt 0:00:12]} Rb3 {[%emt 0:00:08]} 30. Qc2 $1 {[%emt 0:00:19]} Qb6 {[%emt 0:00:57]} (30... Rxf3 $1 $15 31. Kxf3 Bxd4) 31. h5 {[%emt 0:00:17]} (31. Ne1 $11) 31... Rxf3 {[%emt 0:00:40]} (31... Nxb2 $2 32. Nxb2 (32. Rb1 Rxf3 33. Kxf3 Qxd4 $18) 32... Rxb2 33. Qc8+ Kh7 34. Rc7 $18) 32. Kxf3 {[%emt 0:00:04]} Qxd4 {[%emt 0:00:02]} 33. Kg2 {[%emt 0:00:22]} (33. Qe2 $11 {keeps the balance.}) 33... Nxe5 {[%emt 0:00:51]} (33... Qxe5 $17 34. b3 Nd6 (34... Nxa3 35. Qc8+ Kh7 36. Qxb7 $16)) 34. Qe2 $1 $11 {[%emt 0:00:46]} (34. Qc8+ Kh7 35. Qc2+ (35. Qxb7 $2 Qe4+ 36. Kf1 Qd3+ 37. Kg2 Qf3+ 38. Kf1 Nd3 $19) 35... Nd3 $17) 34... Nc6 {[%emt 0:00:13]} 35. Rc3 {[%emt 0:00:09]} Qa4 {[%emt 0:00:24]} (35... Qb6 $15) 36. Qf3 {[%emt 0:00:28]} (36. b4 $14) 36... Bd4 {[%emt 0:00:03]} ({Black should play} 36... Bb6 $15) 37. Rc1 {[%emt 0:00:03]} Qb5 {[%emt 0:00:08]} 38. Rc2 {[%emt 0:00:14]} Bf6 {[%emt 0:00:10]} 39. b4 {[%emt 0:00:31]} Qa4 {[%emt 0:00:11]} 40. Qd3 {[%emt 0:00:05]} Kf8 {[%emt 0:00:22]} 41. Nb2 {[%emt 0:00:13]} Bxb2 {[%emt 0:00:09]} 42. Rxb2 {[%emt 0:00:01]} Ne5 {[%emt 0:00:03]} 43. Qd4 {[%emt 0:00:44]} Nc4 {[%emt 0:00:02]} 44. Re2 {[%emt 0:00:14]} Qxa3 {[%emt 0:00:25]} (44... Qb5 $15) 45. Qc5+ $11 {[%emt 0:00:07]} Kg8 {[%emt 0:00:01]} 46. Qc8+ {[%emt 0:00:09]} Kh7 {[%emt 0:00:01]} 47. Qxb7 {[%emt 0:00:04]} Qd3 {[%emt 0:00:03]} 48. Re1 {[%emt 0:00:12]} Qd2 {[%emt 0:00:13]} 49. Ra1 {[%emt 0:00:06]} Ne3+ {[%emt 0:00:31]} 50. Kg1 {[%emt 0:00:02]} Qb2 {[%emt 0:00:12]} 51. Qxa6 {[%emt 0:00:28]} (51. Rxa6 Qb1+ 52. Kh2 Ng4+ 53. Kg2 Qe4+ 54. Kf1 Nh2+ 55. Kg1 Nf3+ 56. Kg2 Nh4+ 57. Kf1 Qb1+ 58. Ke2 Nf3) 51... Nc2 $2 {[%emt 0:00:10]} (51... Ng4 $1 $11 {and Black stays safe.} 52. Qa2 Qxb4 53. Qc2+ f5) 52. Qd3+ $18 {[%emt 0:00:12]} f5 {[%emt 0:00:02] [#]} 53. Ra8 $1 {[%emt 0:00:11]} Nxb4 {[%emt 0:00:19]} 54. Qb5 {[%emt 0:00:01]} ({White should play} 54. Qe3 $16 Qb1+ 55. Kg2 Qe4+ 56. Qxe4 dxe4 57. Re8) 54... Qc1+ $2 {[%emt 0:00:09][%mdl 8192]} (54... Qb1+ $11 55. Qf1 Qc2) 55. Kg2 $18 {[%emt 0:00:04]} Nc2 {[%emt 0:00:11]} 56. Qe8 {[%emt 0:00:11]} 1-0

[Event "FIDE Open World Rapid 2024"]
[Site "New York"]
[Date "2024.12.28"]
[Round "9.15"]
[White "Kadric, Denis"]
[Black "Zhalmakhanov, Ramazan"]
[Result "1-0"]
[ECO "A06"]
[WhiteElo "2544"]
[BlackElo "2486"]
[Annotator "ChessBase"]
[PlyCount "108"]
[EventDate "2024.12.14"]
[EventType "swiss"]
[EventCountry "USA"]
[SourceTitle "playchess.com"]
[Source "ChessBase"]
[SourceQuality "1"]
[TimeControl "900+10"]

1. Nf3 {[%emt 0:00:01]} d5 {[%emt 0:00:03]} 2. d3 {[%emt 0:00:01]} Nc6 {[%emt 0:00:55]} 3. Nbd2 {[%emt 0:00:03]} e5 {[%emt 0:00:07]} 4. e4 {[%emt 0:00:01]} Nge7 {[%emt 0:00:08]} 5. c3 {[%emt 0:00:05]} a5 {[%emt 0:00:09]} 6. b3 {[%emt 0:00:23]} h6 {[%emt 0:00:11]} 7. h4 {[%emt 0:00:01]} Ng8 {[%emt 0:00:05]} 8. exd5 {[%emt 0:03:29]} Qxd5 {[%emt 0:00:04]} 9. Qe2 {[%emt 0:00:01]} Be6 {[%emt 0:02:23]} 10. Nc4 {[%emt 0:00:30]} f6 {[%emt 0:00:05]} 11. Be3 {[%emt 0:03:10]} Bg4 {[%emt 0:05:59]} 12. Qc2 {[%emt 0:01:42]} Nge7 {[%emt 0:00:38]} 13. Be2 {[%emt 0:00:13]} Nf5 {[%emt 0:00:08]} 14. Rd1 {[%emt 0:00:50]} b5 {[%emt 0:02:32]} 15. Ncd2 {[%emt 0:00:02]} b4 {[%emt 0:01:12]} 16. O-O {[%emt 0:00:43]} bxc3 {[%emt 0:00:17]} 17. Qxc3 {[%emt 0:00:01]} Bb4 {[%emt 0:00:02]} 18. Qc2 {[%emt 0:00:28]} Nxh4 {[%emt 0:01:07]} 19. d4 {[%emt 0:00:56]} Bxd2 {[%emt 0:01:02]} 20. Rxd2 {[%emt 0:00:46]} Bxf3 {[%emt 0:00:08]} 21. dxe5 {[%emt 0:03:32]} Qe6 {[%emt 0:00:03]} 22. Bxf3 {[%emt 0:01:16]} Nxf3+ {[%emt 0:00:15]} 23. gxf3 {[%emt 0:00:01]} Nxe5 {[%emt 0:00:05]} 24. Kg2 {[%emt 0:00:41]} O-O {[%emt 0:00:22]} 25. Qxc7 {[%emt 0:00:03]} Rab8 {[%emt 0:01:07]} 26. Qxa5 {[%emt 0:00:11]} Qf5 {[%emt 0:00:11]} 27. Qd5+ {[%emt 0:00:01]} Kh8 {[%emt 0:00:04]} 28. Qe4 {[%emt 0:00:01]} Qc8 {[%emt 0:00:15]} 29. Rh1 {[%emt 0:00:17]} Nf7 {[%emt 0:00:10]} 30. Rc2 {[%emt 0:00:11]} Qd7 {[%emt 0:00:03]} 31. Rhc1 {[%emt 0:00:19]} Rbe8 {[%emt 0:00:11]} 32. Rc7 {[%emt 0:00:10]} Qb5 {[%emt 0:00:09]} 33. Qg6 {[%emt 0:00:17]} Qd5 {[%emt 0:00:16]} 34. Qg3 {[%emt 0:00:05]} Re5 {[%emt 0:00:12]} 35. R7c5 {[%emt 0:00:11]} Qe6 {[%emt 0:00:04]} 36. Qh3 {[%emt 0:00:14]} f5 {[%emt 0:00:07]} 37. Bd4 {[%emt 0:00:08]} Rxc5 {[%emt 0:00:08]} 38. Rxc5 {[%emt 0:00:02]} Ng5 {[%emt 0:00:01]} 39. Qg3 {[%emt 0:00:15]} f4 {[%emt 0:00:25]} 40. Qh4 {[%emt 0:00:02]} Qg6 {[%emt 0:00:13]} 41. Qg4 {[%emt 0:00:00]} Rd8 {[%emt 0:00:09]} 42. Bc3 {[%emt 0:00:19]} Kh7 {[%emt 0:00:14]} 43. Qf5 {[%emt 0:00:24]} Rd3 {[%emt 0:00:07]} 44. Qxg6+ {[%emt 0:00:06]} Kxg6 {[%emt 0:00:01]} 45. Rc6+ {[%emt 0:00:10]} Kh5 {[%emt 0:00:11]} 46. Bxg7 {[%emt 0:00:03]} Nxf3 {[%emt 0:00:01]} 47. Kf1 {[%emt 0:00:22]} Kg4 {[%emt 0:00:18]} 48. Rg6+ {[%emt 0:00:07]} Kf5 {[%emt 0:00:03]} 49. Rxh6 {[%emt 0:00:04]} Ke4 {[%emt 0:00:25]} 50. Re6+ {[%emt 0:00:03]} Kf5 {[%emt 0:00:01]} 51. Rc6 {[%emt 0:00:17]} Rd2 {[%emt 0:00:14]} 52. a4 {[%emt 0:00:12]} Nh2+ {[%emt 0:00:16]} 53. Kg1 {[%emt 0:00:14]} Nf3+ {[%emt 0:00:09]} 54. Kg2 {[%emt 0:00:03]} Nh4+ {[%emt 0:00:25]} 1-0

[Event "FIDE Open World Rapid 2024"]
[Site "New York"]
[Date "2024.12.27"]
[Round "9.16"]
[White "Firouzja, Alireza"]
[Black "Hong, Andrew"]
[Result "1-0"]
[ECO "C11"]
[WhiteElo "2763"]
[BlackElo "2572"]
[Annotator "TA"]
[PlyCount "115"]
[EventDate "2024.12.14"]
[EventType "swiss"]
[EventCountry "USA"]
[SourceTitle "playchess.com"]
[Source "ChessBase"]
[SourceQuality "1"]
[TimeControl "900+10"]

{[%evp 27,115,37,50,51,37,42,25,22,39,36,38,37,61,48,60,58,73,71,123,117,153,42,35,31,29,28,27,26,31,18,54,41,92,39,170,186,213,220,229,225,684,681,683,681,664,628,635,633,29953,29959,29960,29961,29962,29962,29962,29964,29963,29964,29970,29971,29971,29972,29972,29973,29973,29974,29974,29975,29975,29975,29976,29977,29978,29979,29979,29980,29980,29981,29981,29982,29982,29983,29984,29985,29985,29986,29989,29987,29987,329]} 1. e4 {[%emt 0:00:01]} e6 {[%emt 0:00:15]} 2. d4 {[%emt 0:00:01]} d5 {[%emt 0:00:01]} 3. Nc3 {[%emt 0:00:06]} Nf6 {[%emt 0:00:04]} 4. e5 {[%emt 0:00:01]} Nfd7 {[%emt 0:00:02]} 5. f4 {[%emt 0:00:01]} c5 {[%emt 0:00:02]} 6. Nf3 {[%emt 0:00:01]} Nc6 {[%emt 0:00:02]} 7. Be3 {[%emt 0:00:02]} Be7 {[%emt 0:00:44]} 8. Qd2 {[%emt 0:00:06]} O-O {[%emt 0:00:02]} 9. dxc5 {[%emt 0:00:14]} Qa5 {[%emt 0:00:11]} 10. O-O-O {[%emt 0:00:48]} b6 {[%emt 0:00:09]} 11. Bb5 {[%emt 0:02:00]} Nb4 {[%emt 0:00:08]} 12. a3 {[%emt 0:00:37]} bxc5 {[%emt 0:00:11]} 13. Kb1 {[%emt 0:00:26]} Rb8 {[%emt 0:00:52]} 14. axb4 {[%emt 0:00:03]} cxb4 {[%emt 0:00:15]} 15. Nxd5 $1 {[%emt 0:00:02]} exd5 {[%emt 0:00:07]} 16. Bxd7 {[%emt 0:00:07]} Bxd7 {[%emt 0:00:04]} 17. Qxd5 {[%emt 0:00:02]} Qxd5 {[%emt 0:00:07]} 18. Rxd5 {[%emt 0:00:01]} Bc6 {[%emt 0:00:08]} 19. Ra5 {[%emt 0:00:44]} a6 {[%emt 0:00:27]} 20. b3 {[%emt 0:00:44]} Rfc8 {[%emt 0:00:56]} 21. Re1 {[%emt 0:00:51]} Be4 {[%emt 0:01:58]} 22. Re2 {[%emt 0:00:07]} (22. Rxa6 $2 Rxc2 (22... Bxc2+ 23. Kb2 $17) 23. Ka1 Rxg2 $19) 22... Rc3 {[%emt 0:02:02]} (22... Ra8 $142) 23. Nd4 $16 {[%emt 0:00:35]} Rd8 {[%emt 0:03:24]} 24. Bf2 {[%emt 0:00:02]} (24. Rxa6 Rxe3 25. Rxe3 Rxd4 $17) (24. Bg1 $1 $16 Bb7 25. Nf5 Rd1+ 26. Kb2) 24... Bxg2 $14 {[%emt 0:02:04]} 25. Be1 {[%emt 0:00:01]} (25. Rxa6 $2 Bf1 26. Ra4 Bxe2 27. Nxe2 Rd1+ 28. Kb2 Rc8 $19) 25... Rc5 $1 {[%emt 0:00:08]} ({Don't play} 25... Rh3 26. Nf5 Bf8 (26... Rd1+ 27. Kb2 $16) 27. Rxg2 $16) 26. Bxb4 {[%emt 0:02:06]} Rxa5 {[%emt 0:00:05]} 27. Bxa5 {[%emt 0:00:01]} Rxd4 {[%emt 0:00:07]} 28. Rxg2 {[%emt 0:00:01]} Rxf4 {[%emt 0:00:02]} 29. c4 $1 {[%emt 0:00:04]} h5 {[%emt 0:01:10]} (29... Kf8 $14) 30. Rc2 {[%emt 0:00:22]} (30. Bb6 $16) 30... Rf3 {[%emt 0:00:55]} ({Black should try} 30... Bc5 $14) 31. b4 $1 $18 {[%emt 0:00:35]} f6 {[%emt 0:01:44] [#]} 32. c5 $1 {[%emt 0:01:18]} fxe5 {[%emt 0:00:05]} 33. c6 {[%emt 0:00:00]} Rf8 $2 {[%emt 0:00:16]} (33... Bd6 34. c7 Bxc7 35. Bxc7 (35. Rxc7 h4 $16) 35... Rf4 36. Bxe5 Rxb4+ 37. Ka2 Rb5) 34. c7 $18 {[%emt 0:00:07]} Rc8 {[%emt 0:00:06]} 35. Rd2 {[%emt 0:00:04]} Kf7 {[%emt 0:01:45] [#]} 36. Rd8 $1 {[%emt 0:00:02]} Rxc7 {[%emt 0:00:07]} 37. Bxc7 {[%emt 0:00:02]} Bxd8 {[%emt 0:00:01]} 38. Bxd8 {[%emt 0:00:01]} Ke6 {[%emt 0:00:06]} 39. Kc2 {[%emt 0:00:11]} Kf5 {[%emt 0:00:15]} 40. h4 {[%emt 0:00:08]} Ke4 {[%emt 0:00:11]} 41. Kd2 {[%emt 0:00:58]} Kf3 {[%emt 0:00:21]} 42. Ke1 {[%emt 0:00:32]} e4 {[%emt 0:00:18]} 43. Bg5 {[%emt 0:00:35]} e3 {[%emt 0:00:05]} 44. Kf1 {[%emt 0:00:02]} g6 {[%emt 0:00:17]} 45. Ke1 {[%emt 0:00:03]} e2 {[%emt 0:00:03]} 46. Bf6 {[%emt 0:00:43]} Ke3 {[%emt 0:00:04]} 47. Be7 {[%emt 0:00:02]} Kd3 {[%emt 0:00:15]} 48. Bg5 {[%emt 0:00:30]} Kc4 {[%emt 0:00:10]} 49. Kxe2 {[%emt 0:00:01]} Kxb4 {[%emt 0:00:01]} 50. Ke3 {[%emt 0:00:04]} Kc5 {[%emt 0:00:21]} 51. Bf6 {[%emt 0:00:50]} Kd5 {[%emt 0:00:06]} 52. Kf4 {[%emt 0:00:01]} Ke6 {[%emt 0:00:14]} 53. Kg5 {[%emt 0:00:01]} Kf7 {[%emt 0:00:10]} 54. Bc3 {[%emt 0:00:03]} a5 {[%emt 0:00:12]} 55. Bxa5 {[%emt 0:00:06]} Kg7 {[%emt 0:00:01]} 56. Bc3+ {[%emt 0:00:01]} Kh7 {[%emt 0:00:01]} 57. Bb2 {[%emt 0:00:01]} Kg8 {[%emt 0:00:04]} 58. Kxg6 {[%emt 0:00:03]} 1-0

[Event "FIDE Open World Rapid 2024"]
[Site "New York"]
[Date "2024.12.28"]
[Round "9.16"]
[White "Adewumi, Tanitoluwa"]
[Black "Andersen, Mads"]
[Result "1-0"]
[ECO "C54"]
[WhiteElo "2349"]
[BlackElo "2592"]
[Annotator "ChessBase"]
[PlyCount "82"]
[EventDate "2024.12.14"]
[EventType "swiss"]
[EventCountry "USA"]
[SourceTitle "playchess.com"]
[Source "ChessBase"]
[SourceQuality "1"]
[TimeControl "900+10"]

1. e4 {[%emt 0:00:02]} e5 {[%emt 0:00:01]} 2. Nf3 {[%emt 0:00:02]} Nc6 {[%emt 0:00:01]} 3. Bc4 {[%emt 0:00:01]} Nf6 {[%emt 0:00:03]} 4. d3 {[%emt 0:00:01]} Bc5 {[%emt 0:00:02]} 5. O-O {[%emt 0:00:03]} d6 {[%emt 0:00:06]} 6. c3 {[%emt 0:00:01]} a6 {[%emt 0:00:02]} 7. a4 {[%emt 0:00:01]} Ba7 {[%emt 0:00:06]} 8. Re1 {[%emt 0:00:09]} O-O {[%emt 0:00:08]} 9. Bg5 {[%emt 0:00:02]} h6 {[%emt 0:00:12]} 10. Bh4 {[%emt 0:00:01]} g5 {[%emt 0:00:32]} 11. Bg3 {[%emt 0:00:05]} Nh7 {[%emt 0:02:07]} 12. Nbd2 {[%emt 0:03:10]} Kh8 {[%emt 0:00:56]} 13. Nf1 {[%emt 0:00:55]} h5 {[%emt 0:01:21]} 14. h4 {[%emt 0:00:51]} g4 {[%emt 0:00:18]} 15. N3h2 {[%emt 0:01:10]} f5 {[%emt 0:00:44]} 16. exf5 {[%emt 0:00:02]} Ne7 {[%emt 0:00:36]} 17. Ne3 {[%emt 0:02:22]} Bxe3 {[%emt 0:00:51]} 18. Rxe3 {[%emt 0:00:04]} Nxf5 {[%emt 0:00:05]} 19. d4 {[%emt 0:02:47]} Nxe3 {[%emt 0:02:50]} 20. fxe3 {[%emt 0:00:01]} Nf6 {[%emt 0:00:32]} 21. dxe5 {[%emt 0:00:45]} Ne4 {[%emt 0:00:15]} 22. Bf4 {[%emt 0:00:09]} Qxh4 {[%emt 0:00:47]} 23. Qd5 {[%emt 0:02:24]} Bf5 {[%emt 0:02:11]} 24. Rf1 {[%emt 0:00:50]} c6 {[%emt 0:00:49]} 25. Qd4 {[%emt 0:00:04]} d5 {[%emt 0:00:03]} 26. Bd3 {[%emt 0:00:17]} c5 {[%emt 0:01:31]} 27. Qxd5 {[%emt 0:00:08]} Rad8 {[%emt 0:00:02]} 28. Bxe4 {[%emt 0:02:41]} Rxd5 {[%emt 0:00:05]} 29. Bxd5 {[%emt 0:00:02]} Bd3 {[%emt 0:00:34]} 30. Rd1 {[%emt 0:00:46]} Be2 {[%emt 0:00:15]} 31. g3 {[%emt 0:00:07]} Qd8 {[%emt 0:01:04]} 32. Rd2 {[%emt 0:00:01]} Bc4 {[%emt 0:00:31]} 33. e4 {[%emt 0:00:00]} Bxd5 {[%emt 0:00:21]} 34. exd5 {[%emt 0:00:10]} Rxf4 {[%emt 0:00:22]} 35. gxf4 {[%emt 0:00:02]} Qh4 {[%emt 0:00:18]} 36. Nf1 {[%emt 0:00:33]} Kg7 {[%emt 0:00:13]} 37. d6 {[%emt 0:00:03]} Kg6 {[%emt 0:00:13]} 38. d7 {[%emt 0:00:10]} Qd8 {[%emt 0:00:02]} 39. Ng3 {[%emt 0:00:23]} h4 {[%emt 0:00:09]} 40. f5+ {[%emt 0:00:14]} Kg5 {[%emt 0:00:14]} 41. e6 {[%emt 0:00:06]} Kf4 {[%emt 0:00:28]} 1-0